fUST/lending_fUST_20240815
["ID","MTS","AMOUNT","RATE_DAILY","PERIOD"]
[335001143,1723716719746,-760.14,0.00019726,2]
[335001144,1723716719902,-500.0,0.00019726,2]
[335001145,1723716719913,-703.21,0.00019726,2]
[335001146,1723716719922,-739.05,0.00019726,2]
[335001147,1723716719933,-809.79,0.00019726,2]
[335001148,1723716719944,-753.0,0.00019726,2]
[335001149,1723716719954,-768.32,0.00019726,2]
[335001150,1723716719964,-735.32,0.00019726,2]
[335001151,1723716719975,-588.82,0.00019726,2]
[335001152,1723716719985,-601.68,0.00019726,2]
[335001153,1723716719995,-500.0,0.00019726,2]
[335001154,1723716720004,-959.18,0.00019726,2]
[335001155,1723716720014,-577.71,0.00019726,2]
[335001156,1723716720023,-739.29,0.00019726,2]
[335001157,1723716720033,-863.69,0.00019726,2]
[335001158,1723716720043,-683.56,0.00019726,2]
[335001159,1723716720053,-1482.01,0.00019726,2]
[335001160,1723716720063,-637.65,0.00019726,2]
[335001161,1723716720073,-752.65,0.00019726,2]
[335001162,1723716720083,-916.36,0.00019726,2]
[335001163,1723716720093,-905.05,0.00019726,2]
[335001164,1723716720103,-1137.78,0.00019726,2]
[335001165,1723716720113,-581.08,0.00019726,2]
[335001166,1723716720124,-618.51,0.00019726,2]
[335001167,1723716720134,-696.9,0.00019726,2]
[335001168,1723716720145,-615.83,0.00019726,2]
[335001169,1723716720155,-1246.53,0.00019726,2]
[335001170,1723716720166,-1277.91,0.00019726,2]
[335001171,1723716720175,-822.29,0.00019726,2]
[335001172,1723716720187,-801.88,0.00019726,2]
[335001173,1723716720197,-536.68,0.00019726,2]
[335001174,1723716720208,-338.88412573,0.00019726,2]
[335001175,1723716720219,-3994.14,0.00019726,2]
[335001176,1723716720230,-546.03,0.00019726,2]
[335001177,1723716720240,-653.84,0.00019726,2]
[335001178,1723716720251,-855.41,0.00019726,2]
[335001179,1723716720261,-1698.32,0.00019726,2]
[335001180,1723716720270,-865.22,0.00019726,2]
[335001181,1723716720280,-1671.37,0.00019726,2]
[335001182,1723716720291,-701.74,0.00019726,2]
[335001183,1723716720301,-1706.36,0.00019726,2]
[335001184,1723716720311,-556.69,0.00019726,2]
[335001185,1723716720321,-996.25,0.00019726,2]
[335001186,1723716720331,-1331.16,0.00019726,2]
[335001187,1723716720340,-521.14,0.00019726,2]
[335001188,1723716720350,-581.45,0.00019726,2]
[335001189,1723716720360,-1209.32,0.00019726,2]
[335001190,1723716720370,-1100.1,0.00019726,2]
[335001191,1723716720379,-562.82,0.00019726,2]
[335001192,1723716720389,-2254.64,0.00019726,2]
[335001193,1723716720399,-1967.02,0.00019726,2]
[335001194,1723716720408,-527.63,0.00019726,2]
[335001195,1723716720419,-988.01,0.00019726,2]
[335001196,1723716720430,-927.26,0.00019726,2]
[335001197,1723716720439,-719.3,0.00019726,2]
[335001198,1723716720449,-572.43,0.00019726,2]
[335001199,1723716720458,-799.05,0.00019726,2]
[335001200,1723716720468,-581.88,0.00019726,2]
[335001201,1723716720478,-2164.18,0.00019726,2]
[335001202,1723716720487,-2006.92,0.00019726,2]
[335001203,1723716720497,-761.66,0.00019726,2]
[335001204,1723716720506,-2873.64,0.00019726,2]
[335001205,1723716720516,-561.92,0.00019726,2]
[335001206,1723716720526,-7862.62,0.00019726,2]
[335001207,1723716720535,-688.24,0.00019726,2]
[335001208,1723716720545,-232.30354443,0.00019726,2]
[335001209,1723716720555,-712.1,0.00019726,2]
[335001210,1723716720564,-2181.37,0.00019726,2]
[335001211,1723716720573,-527.87,0.00019726,2]
[335001212,1723716720588,-1909.95,0.00019726,2]
[335001213,1723716720598,-747.02,0.00019726,2]
[335001214,1723716720607,-1074.32,0.00019726,2]
[335001215,1723716720617,-1120.97,0.00019726,2]
[335001216,1723716720627,-844.17,0.00019726,2]
[335001217,1723716720636,-1067.37,0.00019726,2]
[335001218,1723716720646,-562.8,0.00019726,2]
[335001219,1723716720657,-658.27,0.00019726,2]
[335001220,1723716720668,-1035.86,0.00019726,2]
[335001221,1723716720680,-1942.4,0.00019726,2]
[335001222,1723716720690,-580.84,0.00019726,2]
[335001223,1723716720699,-860.49,0.00019726,2]
[335001224,1723716720710,-948.67,0.00019726,2]
[335001225,1723716720720,-4530.48,0.00019726,2]
[335001226,1723716720730,-1310.27,0.00019726,2]
[335001227,1723716720740,-615.48,0.00019726,2]
[335001228,1723716720749,-1631.5,0.00019726,2]
[335001229,1723716720761,-504.55,0.00019726,2]
[335001230,1723716720771,-8000.61,0.00019726,2]
[335001231,1723716720781,-700.72,0.00019726,2]
[335001232,1723716720790,-1156.31,0.00019726,2]
[335001233,1723716720800,-1318.64,0.00019726,2]
[335001234,1723716720809,-777.45,0.00019726,2]
[335001235,1723716720819,-1553.53,0.00019726,2]
[335001236,1723716720828,-2060.47,0.00019726,2]
[335001237,1723716720838,-2404.91,0.00019726,2]
[335001238,1723716720847,-853.54,0.00019726,2]
[335001239,1723716720857,-4995.59,0.00019726,2]
[335001240,1723716720867,-1660.52,0.00019726,2]
[335001241,1723716720876,-671.77,0.00019726,2]
[335001242,1723716720886,-567.31,0.00019726,2]
[335001243,1723716720895,-1508.2,0.00019726,2]
[335001244,1723716720905,-919.55,0.00019726,2]
[335001245,1723716720913,-1025.91,0.00019726,2]
[335001246,1723716720923,-569.43,0.00019726,2]
[335001247,1723716720935,-1601.78,0.00019726,2]
[335001248,1723716720944,-529.83,0.00019726,2]
[335001249,1723716720954,-1505.39,0.00019726,2]
[335001250,1723716720963,-706.04,0.00019726,2]
[335001251,1723716720972,-1190.58,0.00019726,2]
[335001252,1723716720983,-2092.37,0.00019726,2]
[335001253,1723716720993,-570.66,0.00019726,2]
[335001254,1723716721003,-861.8,0.00019726,2]
[335001255,1723716721015,-1608.08,0.00019726,2]
[335001256,1723716721026,-540.90312163,0.0002,2]
[335001257,1723716721036,-217.40673456,0.0002,2]
[335001258,1723716721047,-500.0,0.0002,2]
[335001259,1723716721058,-505.0,0.0002,2]
[335001260,1723716721067,-506.0,0.0002,2]
[335001261,1723716721077,-159.11827332,0.0002,2]
[335001262,1723716721086,-174.50847196,0.0002,2]
[335001263,1723716721095,-183.5,0.0002,2]
[335001264,1723716721105,-249.84762666,0.0002,2]
[335001265,1723716721115,-300.0,0.0002,2]
[335001266,1723716721124,-1017.41355849,0.0002,2]
[335001267,1723716721133,-997.55,0.0002,2]
[335001268,1723716721143,-1493.97,0.0002,2]
[335001269,1723716721153,-435.0,0.0002,2]
[335001270,1723716721163,-154.68290005,0.0002,2]
[335001271,1723716721173,-271.30492816,0.0002,2]
[335001272,1723716721185,-1471.01949458,0.0002,2]
[335001273,1723716721199,-35621.87559583,0.0002,2]
[335001274,1723716721208,-154.72922386,0.0002,2]
[335001275,1723716721218,-200.0,0.0002,14]
[335001276,1723716721227,-200.0,0.0002,7]
[335001277,1723716721236,-200.0,0.0002,2]
[335001278,1723716721246,-20158.44278782,0.0002,2]
[335001279,1723716721255,-5333.0,0.0002,7]
[335001280,1723716721265,-154.80649189,0.0002,2]
[335001281,1723716721274,-640.65766369,0.0002,10]
[335001282,1723716721284,-1043.3224735,0.0002,4]
[335001283,1723716721293,-8190.13129186,0.0002,2]
[335001284,1723716721302,-155.26378214,0.0002,4]
[335001285,1723716721313,-126381.49441987,0.0002,2]
[335001286,1723716721322,-633.42916606,0.0002,2]
[335001287,1723716721331,-714.34162968,0.0002,2]
[335001288,1723716721341,-978.70190177,0.0002,2]
[335001289,1723716721352,-727.14219223,0.0002,2]
[335001290,1723716721361,-697.59303905,0.0002,2]
[335001291,1723716721371,-766.44771648,0.0002,2]
[335001292,1723716721381,-979.42721828,0.0002,10]
[335001293,1723716721391,-219.37368043,0.0002,2]
[335001294,1723716721401,-869.69631462,0.0002,2]
[335001295,1723716721412,-590.38318173,0.0002,2]
[335001296,1723716721422,-736.78191851,0.0002,2]
[335001297,1723716721433,-632.69910254,0.0002,2]
[335001298,1723716721443,-739.97160208,0.0002,2]
[335001299,1723716721452,-618.74655804,0.0002,2]
[335001300,1723716721462,-693.90620533,0.0002,2]
[335001301,1723716721471,-586.31559944,0.0002,2]
[335001302,1723716721482,-768.1758442,0.0002,2]
[335001303,1723716721492,-658.97810972,0.0002,2]
[335001304,1723716721501,-725.06947773,0.0002,2]
[335001305,1723716721511,-151.31843755,0.0002,2]
[335001306,1723716721521,-733.68312654,0.0002,2]
[335001307,1723716721531,-507.13885516,0.0002,2]
[335001308,1723716721540,-808.11700651,0.0002,2]
[335001309,1723716721550,-1080.46,0.0002,2]
[335001310,1723716721559,-618.81046238,0.0002,2]
[335001311,1723716721570,-549.68882647,0.0002,2]
[335001312,1723716721579,-761.99771536,0.0002,2]
[335001313,1723716721592,-786.82061462,0.0002,2]
[335001314,1723716721602,-583.01706123,0.0002,2]
[335001315,1723716721612,-1007.58475033,0.0002,2]
[335001316,1723716721622,-1023.6873689,0.0002,2]
[335001317,1723716721633,-636.30925313,0.0002,2]
[335001318,1723716721643,-524.0741791,0.0002,2]
[335001319,1723716721655,-525.90122716,0.0002,2]
[335001320,1723716721666,-540.43394775,0.0002,2]
[335001321,1723716721676,-723.00060521,0.0002,2]
[335001322,1723716721685,-701.46202078,0.0002,2]
[335001323,1723716721694,-523.67330656,0.0002,2]
[335001324,1723716721704,-720.12555199,0.0002,2]
[335001325,1723716721713,-424.53145335,0.0002,2]
[335001326,1723716721725,-705.74207279,0.0002,2]
[335001327,1723716721737,-760.32387085,0.0002,2]
[335001328,1723716721748,-249.57373779,0.0002,2]
[335001329,1723716721761,-703.33049442,0.0002,2]
[335001330,1723716721770,-739.05285377,0.0002,2]
[335001331,1723716721780,-809.83815831,0.0002,2]
[335001332,1723716721790,-19585.0,0.0002,4]
[335001333,1723716721802,-753.03044876,0.0002,2]
[335001334,1723716721812,-768.55873114,0.0002,2]
[335001335,1723716721822,-735.36244604,0.0002,2]
[335001336,1723716721831,-588.9298333,0.0002,2]
[335001337,1723716721840,-601.70949332,0.0002,2]
[335001338,1723716721850,-204.29628964,0.0002,2]
[335001339,1723716721859,-959.29770682,0.0002,2]
[335001340,1723716721869,-577.91138392,0.0002,2]
[335001341,1723716721879,-739.31834603,0.0002,2]
[335001342,1723716721888,-863.83293516,0.0002,2]
[335001343,1723716721898,-683.74057823,0.0002,2]
[335001344,1723716721908,-1482.16980439,0.0002,2]
[335001345,1723716721919,-637.8332265,0.0002,2]
[335001346,1723716721931,-752.78865611,0.0002,2]
[335001347,1723716721941,-916.58554901,0.0002,2]
[335001348,1723716721951,-905.22464851,0.0002,2]
[335001349,1723716721961,-1137.78695379,0.0002,2]
[335001350,1723716721971,-581.20070211,0.0002,2]
[335001351,1723716721981,-618.71744102,0.0002,2]
[335001352,1723716721990,-697.06738363,0.0002,2]
[335001353,1723716721999,-615.99494784,0.0002,2]
[335001354,1723716722009,-1246.54982635,0.0002,2]
[335001355,1723716722019,-1278.06158681,0.0002,2]
[335001356,1723716722029,-822.36350493,0.0002,2]
[335001357,1723716722039,-802.07975764,0.0002,2]
[335001358,1723716722049,-536.77400042,0.0002,2]
[335001359,1723716722059,-3994.32746491,0.0002,2]
[335001360,1723716722069,-546.08118677,0.0002,2]
[335001361,1723716722078,-654.01288807,0.0002,2]
[335001362,1723716722088,-855.51761361,0.0002,2]
[335001363,1723716722099,-1698.48,0.0002,2]
[335001364,1723716722108,-150.0,0.0002,2]
[335001365,1723716722118,-865.3393859,0.0002,2]
[335001366,1723716722128,-1671.55610956,0.0002,2]
[335001367,1723716722137,-701.80545394,0.0002,2]
[335001368,1723716722147,-1706.569257,0.0002,2]
[335001369,1723716722157,-556.80393851,0.0002,2]
[335001370,1723716722166,-996.43846414,0.0002,2]
[335001371,1723716722176,-1331.30525481,0.0002,2]
[335001372,1723716722186,-521.14487859,0.0002,2]
[335001373,1723716722195,-581.63957771,0.0002,2]
[335001374,1723716722205,-1209.35113678,0.0002,2]
[335001375,1723716722215,-3949.0,0.0002,2]
[335001376,1723716722225,-1100.33722578,0.0002,2]
[335001377,1723716722234,-563.02238765,0.0002,2]
[335001378,1723716722244,-2254.75698991,0.0002,2]
[335001379,1723716722253,-1967.10878703,0.0002,2]
[335001380,1723716722263,-527.71974697,0.0002,2]
[335001381,1723716722273,-988.22214256,0.0002,2]
[335001382,1723716722282,-927.26610312,0.0002,2]
[335001383,1723716722292,-719.33030919,0.0002,2]
[335001384,1723716722302,-572.62781763,0.0002,2]
[335001385,1723716722311,-799.28065491,0.0002,2]
[335001386,1723716722321,-581.92,0.0002,2]
[335001387,1723716722331,-2164.36672805,0.0002,2]
[335001388,1723716722341,-2007.01402947,0.0002,2]
[335001389,1723716722351,-761.75203143,0.0002,2]
[335001390,1723716722361,-2873.67039628,0.0002,2]
[335001391,1723716722372,-562.14113562,0.0002,2]
[335001392,1723716722381,-7862.73660915,0.0002,2]
[335001393,1723716722391,-688.47035897,0.0002,2]
[335001394,1723716722401,-712.24991474,0.0002,2]
[335001395,1723716722411,-2181.52623612,0.0002,2]
[335001396,1723716722421,-528.01,0.0002,2]
[335001397,1723716722432,-1910.08570234,0.0002,2]
[335001398,1723716722442,-747.12949023,0.0002,2]
[335001399,1723716722451,-1074.42094845,0.0002,2]
[335001400,1723716722462,-1121.20923147,0.0002,2]
[335001401,1723716722472,-844.4025926,0.0002,2]
[335001402,1723716722481,-1067.5830387,0.0002,2]
[335001403,1723716722490,-562.91098309,0.0002,2]
[335001404,1723716722500,-658.48422204,0.0002,2]
[335001405,1723716722510,-1035.861253,0.0002,2]
[335001406,1723716722519,-1942.47244153,0.0002,2]
[335001407,1723716722529,-581.04174851,0.0002,2]
[335001408,1723716722538,-860.57893879,0.0002,2]
[335001409,1723716722547,-948.71941248,0.0002,2]
[335001410,1723716722556,-4530.68426617,0.0002,2]
[335001411,1723716722566,-1310.46369566,0.0002,2]
[335001412,1723716722576,-615.62689422,0.0002,2]
[335001413,1723716722590,-1631.62190722,0.0002,2]
[335001414,1723716722601,-504.74471802,0.0002,2]
[335001415,1723716722611,-8000.63561065,0.0002,2]
[335001416,1723716722623,-700.87,0.0002,2]
[335001417,1723716722633,-1156.52997617,0.0002,2]
[335001418,1723716722643,-1318.69251133,0.0002,2]
[335001419,1723716722654,-777.65755944,0.0002,2]
[335001420,1723716722666,-1553.74830795,0.0002,2]
[335001421,1723716722676,-1001.014073,0.0002,2]
[335001422,1723716722686,-2060.58204018,0.0002,2]
[335001423,1723716722696,-2405.06403197,0.0002,2]
[335001424,1723716722707,-853.71040418,0.0002,2]
[335001425,1723716722718,-4995.81520406,0.0002,2]
[335001426,1723716722728,-1660.67886447,0.0002,2]
[335001427,1723716722738,-671.87367763,0.0002,2]
[335001428,1723716722752,-567.41119595,0.0002,2]
[335001429,1723716722762,-1508.30817782,0.0002,2]
[335001430,1723716722772,-919.67079018,0.0002,2]
[335001431,1723716722781,-1026.14126234,0.0002,2]
[335001432,1723716722790,-569.48396802,0.0002,2]
[335001433,1723716722800,-1601.91925567,0.0002,2]
[335001434,1723716722809,-529.90005154,0.0002,2]
[335001435,1723716722820,-1505.56312341,0.0002,2]
[335001436,1723716722831,-706.2631607,0.0002,2]
[335001437,1723716722842,-1190.73478704,0.0002,2]
[335001438,1723716722852,-2092.56610538,0.0002,2]
[335001439,1723716722863,-570.77065845,0.0002,2]
[335001440,1723716722873,-862.00024654,0.0002,2]
[335001441,1723716722886,-1608.23942285,0.0002,2]
[335001442,1723716722895,-62380.32,0.000201,2]
[335001443,1723716722905,-259.13809954,0.00020276,2]
[335001444,1723716722915,-200.82159658,0.00020287,2]
[335001445,1723716722926,-800.0,0.00020287,2]
[335001446,1723716722939,-737.96808113,0.00020289,2]
[335001447,1723716722949,-9004.27281257,0.00020399,2]
[335001448,1723716722959,-2308.231634,0.00020548,2]
[335001449,1723716722970,-500.0,0.00020613,2]
[335001450,1723716722979,-750.0,0.00020707,2]
[335001451,1723716722990,-511.0,0.00021,2]
[335001452,1723716723002,-258.36027238,0.00021,2]
[335001453,1723716723012,-232.83214195,0.00021,2]
[335001454,1723716723022,-400.0,0.00021,2]
[335001455,1723716723033,-3000.0,0.00021,2]
[335001456,1723716723044,-192.99802415,0.00021,2]
[335001457,1723716723054,-150.0,0.00021,2]
[335001458,1723716723063,-3000.0,0.0002101,2]
[335001459,1723716723073,-4945.103985,0.0002102,2]
[335001460,1723716723084,-504.02394075,0.000212,2]
[335001461,1723716723094,-157.42615257,0.000212,30]
[335001462,1723716723104,-500.0,0.00021644,2]
[335001463,1723716723114,-4672.25162875,0.0002165,2]
[335001464,1723716723124,-780.50163907,0.00021917,5]
[335001465,1723716723136,-433.346892,0.00021918,2]
[335001466,1723716723146,-433.346892,0.00021918,2]
[335001467,1723716723157,-433.346892,0.00021918,2]
[335001468,1723716723166,-433.346892,0.00021918,2]
[335001469,1723716723176,-433.346892,0.00021918,2]
[335001470,1723716723188,-433.346892,0.00021918,2]
[335001471,1723716723198,-433.346892,0.00021918,2]
[335001472,1723716723208,-433.346892,0.00021918,2]
[335001473,1723716723218,-433.346892,0.00021918,2]
[335001474,1723716723228,-433.346892,0.00021918,2]
[335001475,1723716723238,-433.346892,0.00021918,2]
[335001476,1723716723248,-433.346892,0.00021918,2]
[335001477,1723716723258,-433.346892,0.00021918,2]
[335001478,1723716723267,-433.346892,0.00021918,2]
[335001479,1723716723277,-433.346892,0.00021918,2]
[335001480,1723716723288,-433.346892,0.00021918,2]
[335001481,1723716723298,-433.346892,0.00021918,2]
[335001482,1723716723308,-433.346892,0.00021918,2]
[335001483,1723716723318,-433.346892,0.00021918,2]
[335001484,1723716723328,-433.34689,0.00021918,2]
[335001485,1723716723338,-161.720968,0.00021918,2]
[335001486,1723716723348,-160.0,0.00021918,2]
[335001487,1723716723359,-160.0,0.00021918,2]
[335001488,1723716723369,-160.0,0.00021918,2]
[335001489,1723716723379,-1527.2625083,0.00022,30]
[335001490,1723716723389,-400.0,0.00022,2]
[335001491,1723716723399,-268.59458593,0.00022,2]
[335001492,1723716723409,-555.32183854,0.00022,2]
[335001493,1723716723419,-211.0,0.00022,5]
[335001494,1723716723430,-1007.52353316,0.00022,2]
[335001495,1723716723441,-302.63687509,0.00022,2]
[335001496,1723716723451,-302.60665372,0.00022,2]
[335001497,1723716723461,-3048.62724068,0.00022191,2]
[335001498,1723716723471,-302.63687509,0.0002222,2]
[335001499,1723716723481,-302.60665372,0.0002222,2]
[335001500,1723716723491,-154.74467129,0.000223,2]
[335001501,1723716723501,-1493.97,0.000224,7]
[335001502,1723716723511,-62380.32,0.000224,14]
[335001503,1723716723522,-302.63687509,0.0002244,2]
[335001504,1723716723531,-302.60665372,0.0002244,2]
[335001505,1723716723541,-997.55,0.000225,14]
[335001506,1723716723551,-302.63687509,0.0002266,2]
[335001507,1723716723561,-302.60665372,0.0002266,2]
[335001508,1723716723571,-500.0,0.00022726,2]
[335001509,1723716723583,-1000.0,0.00022878,2]
[335001510,1723716723595,-302.63687509,0.0002288,2]
[335001511,1723716723605,-302.60665372,0.0002288,2]
[335001512,1723716723615,-239.35424568,0.00023,2]
[335001513,1723716723626,-400.0,0.00023,2]
[335001514,1723716723635,-200.0,0.00023,2]
[335001515,1723716723646,-192.99802415,0.00023,2]
[335001516,1723716723655,-516.0,0.00023,2]
[335001517,1723716723667,-199.0,0.00023,2]
[335001518,1723716723676,-3200.0,0.00023004,2]
[335001519,1723716723688,-4100.0,0.00023035,2]
[335001520,1723716723699,-453.95531264,0.000231,4]
[335001521,1723716723708,-453.90998057,0.000231,4]
[335001522,1723716723719,-4100.0,0.00023107,2]
[335001523,1723716723731,-500.0,0.00023113,2]
[335001524,1723716723742,-4100.0,0.00023122,2]
[335001525,1723716723752,-1500.0,0.00023138,2]
[335001526,1723716723762,-3200.0,0.00023163,2]
[335001527,1723716723773,-397.94,0.00023211,2]
[335001528,1723716723782,-4100.0,0.00023218,2]
[335001529,1723716723792,-500.0,0.00023236,2]
[335001530,1723716723802,-3200.0,0.00023247,2]
[335001531,1723716723811,-500.0,0.00023251,2]
[335001532,1723716723822,-4100.0,0.00023276,2]
[335001533,1723716723833,-516.0,0.00023288,2]
[335001534,1723716723843,-1500.0,0.00023288,2]
[335001535,1723716723854,-201.150846,0.000233,15]
[335001536,1723716723864,-1000.0,0.0002332,2]
[335001537,1723716723875,-453.95531264,0.0002332,4]
[335001538,1723716723884,-453.90998057,0.0002332,4]
[335001539,1723716723895,-1000.0,0.00023325,2]
[335001540,1723716723904,-1000.0,0.0002334,2]
[335001541,1723716723914,-503.32049717,0.00023349,2]
[335001542,1723716723925,-500.0,0.00023357,2]
[335001543,1723716723937,-4100.0,0.00023357,2]
[335001544,1723716723948,-1500.0,0.00023372,2]
[335001545,1723716723959,-500.0,0.00023386,2]
[335001546,1723716723968,-3200.0,0.00023391,2]
[335001547,1723716723978,-4100.0,0.00023413,2]
[335001548,1723716723987,-500.0,0.00023422,2]
[335001549,1723716723997,-1500.0,0.00023502,2]
[335001550,1723716724008,-453.95531264,0.0002354,4]
[335001551,1723716724018,-453.90998057,0.0002354,4]
[335001552,1723716724029,-3200.0,0.00023606,2]
[335001553,1723716724039,-500.0,0.00023629,2]
[335001554,1723716724050,-737.96808113,0.00023635,2]
[335001555,1723716724060,-3200.0,0.00023648,2]
[335001556,1723716724070,-4100.0,0.00023662,2]
[335001557,1723716724247,-4100.0,0.00023724,2]
[335001558,1723716724275,-544.60522441,0.0002374,2]
[335001559,1723716724285,-453.95531264,0.0002376,4]
[335001560,1723716724295,-453.90998057,0.0002376,4]
[335001561,1723716724305,-500.0,0.00023765,2]
[335001562,1723716724315,-1500.0,0.00023866,2]
[335001563,1723716724325,-500.0,0.00023867,2]
[335001564,1723716724335,-3200.0,0.00023883,2]
[335001565,1723716724344,-500.0,0.00023907,2]
[335001566,1723716724354,-154.74467129,0.00023923,2]
[335001567,1723716724365,-1000.0,0.00023967,2]
[335001568,1723716724375,-4100.0,0.00023972,2]
[335001569,1723716724386,-453.95531264,0.0002398,4]
[335001570,1723716724395,-453.90998057,0.0002398,4]
[335001571,1723716724407,-4100.0,0.00023992,2]
[335001572,1723716724417,-2225.72897627,0.00024,30]
[335001573,1723716724427,-318.69896156,0.00024,2]
[335001574,1723716724440,-16345.0,0.00024,15]
[335001575,1723716724450,-2601.87735278,0.00024,2]
[335001576,1723716724460,-500.0,0.00024,2]
[335001577,1723716724469,-154.80649189,0.00024,2]
[335001578,1723716724480,-1000.0,0.00024008,2]
[335001579,1723716724490,-4100.0,0.00024029,2]
[335001580,1723716724499,-4100.0,0.00024033,2]
[335001581,1723716724510,-3200.0,0.00024037,2]
[335001582,1723716724519,-1500.0,0.00024074,2]
[335001583,1723716724529,-1493.97,0.000241,7]
[335001584,1723716724539,-500.0,0.00024102,2]
[335001585,1723716724549,-1500.0,0.00024107,2]
[335001586,1723716724560,-1500.0,0.00024153,2]
[335001587,1723716724571,-199.0,0.00024164,2]
[335001588,1723716724582,-516.0,0.00024164,2]
[335001589,1723716724595,-4100.0,0.00024165,2]
[335001590,1723716724606,-500.0,0.00024198,2]
[335001591,1723716724617,-997.55,0.000242,14]
[335001592,1723716724630,-1500.0,0.00024209,2]
[335001593,1723716724640,-3200.0,0.00024218,2]
[335001594,1723716724651,-1000.0,0.00024222,2]
[335001595,1723716724663,-4100.0,0.00024236,2]
[335001596,1723716724673,-1500.0,0.0002428,2]
[335001597,1723716724685,-62380.32,0.000243,14]
[335001598,1723716724698,-1500.0,0.00024357,2]
[335001599,1723716724709,-500.0,0.00024369,2]
[335001600,1723716724719,-500.0,0.00024391,2]
[335001601,1723716724729,-3200.0,0.00024411,2]
[335001602,1723716724739,-500.0,0.00024426,2]
[335001603,1723716724750,-1500.0,0.00024444,2]
[335001604,1723716724762,-3200.0,0.00024454,2]
[335001605,1723716724772,-3200.0,0.00024455,2]
[335001606,1723716724782,-1000.0,0.00024459,2]
[335001607,1723716724793,-500.0,0.00024471,2]
[335001608,1723716724804,-1500.0,0.00024477,2]
[335001609,1723716724815,-3200.0,0.00024478,2]
[335001610,1723716724825,-500.0,0.0002448,2]
[335001611,1723716724836,-1000.0,0.00024516,2]
[335001612,1723716724846,-3200.0,0.00024518,2]
[335001613,1723716724856,-499.3,0.00024541,2]
[335001614,1723716724866,-4100.0,0.00024603,2]
[335001615,1723716724876,-1000.0,0.00024636,2]
[335001616,1723716724886,-504.69018362,0.00024657,3]
[335001617,1723716724897,-4100.0,0.00024657,2]
[335001618,1723716724906,-3316.53,0.00024657,2]
[335001619,1723716724916,-3316.53,0.00024657,2]
[335001620,1723716724926,-3316.53,0.00024657,2]
[335001621,1723716724938,-3316.53,0.00024657,2]
[335001622,1723716724948,-3316.53,0.00024657,2]
[335001623,1723716724959,-3316.53,0.00024657,2]
[335001624,1723716724969,-3316.53,0.00024657,2]
[335001625,1723716724979,-3316.53,0.00024657,2]
[335001626,1723716724990,-3316.53,0.00024657,2]
[335001627,1723716725000,-3316.53,0.00024657,2]
[335001628,1723716725010,-3316.53,0.00024657,2]
[335001629,1723716725019,-3316.53,0.00024657,2]
[335001630,1723716725029,-3316.53,0.00024657,2]
[335001631,1723716725040,-3316.53,0.00024657,2]
[335001632,1723716725051,-3316.53,0.00024657,2]
[335001633,1723716725062,-3316.53,0.00024657,2]
[335001634,1723716725074,-3316.53,0.00024657,2]
[335001635,1723716725084,-3316.53,0.00024657,2]
[335001636,1723716725095,-3316.53,0.00024657,2]
[335001637,1723716725105,-3316.53,0.00024657,2]
[335001638,1723716725115,-3316.53,0.00024657,2]
[335001639,1723716725127,-3316.53,0.00024657,2]
[335001640,1723716725138,-3316.53,0.00024657,2]
[335001641,1723716725150,-3316.63194198,0.00024657,2]
[335001642,1723716725161,-500.0,0.00024658,2]